[Event "Titled Tuesday Blitz May 9 Late 2023"]
[White "Nikologorskiy, Konstantin"]
[Black "ElenGajger"]
[WhiteFideId "24111708"]
[WhiteElo "2273"]
[BlackElo "2420"]
[Result "1-0"]
[Round "03"]
[TimeControl "180+2"]
[Date "2023.05.09"]
[WhiteClock "0:00:08"]
[BlackClock "0:00:00"]

1. d4 {[%clk 0:02:58]}  Nf6 {[%clk 0:02:59]} 2. c4 {[%clk 0:02:59]}  g6 {[%clk 0:02:59]} 3. Nf3 {[%clk 0:02:59]}  Bg7 {[%clk 0:02:58]} 4. Nc3 {[%clk 0:02:59]}  d5 {[%clk 0:02:58]} 5. h4 {[%clk 0:02:59]}  dxc4 {[%clk 0:02:44]} 6. e4 {[%clk 0:02:59]}  c5 {[%clk 0:02:44]} 7. d5 {[%clk 0:02:59]}  b5 {[%clk 0:02:41]} 8. h5 {[%clk 0:02:59]}  Nxh5 {[%clk 0:02:35]} 9. Nxb5 {[%clk 0:02:54]}  Ba6 {[%clk 0:02:19]} 10. Nc3 {[%clk 0:02:53]}  Nd7 {[%clk 0:02:13]} 11. Bg5 {[%clk 0:02:49]}  Qb8 {[%clk 0:02:06]} 12. Qc2 {[%clk 0:02:47]}  Nf4 {[%clk 0:01:59]} 13. Bxf4 {[%clk 0:01:50]}  Qxf4 {[%clk 0:01:57]} 14. Be2 {[%clk 0:01:44]}  Rb8 {[%clk 0:01:11]} 15. O-O {[%clk 0:01:34]}  O-O {[%clk 0:00:57]} 16. Rab1 {[%clk 0:01:31]}  Ne5 {[%clk 0:00:55]} 17. Nxe5 {[%clk 0:01:30]}  Bxe5 {[%clk 0:00:54]} 18. g3 {[%clk 0:01:31]}  Qg5 {[%clk 0:00:51]} 19. Kg2 {[%clk 0:01:30]}  Qf6 {[%clk 0:00:43]} 20. Na4 {[%clk 0:01:20]}  Bd4 {[%clk 0:00:39]} 21. Bxc4 {[%clk 0:01:15]}  Bxc4 {[%clk 0:00:38]} 22. Qxc4 {[%clk 0:01:16]}  Rb4 {[%clk 0:00:38]} 23. Qc2 {[%clk 0:01:16]}  c4 {[%clk 0:00:26]} 24. a3 {[%clk 0:01:07]}  Rb3 {[%clk 0:00:26]} 25. Nc3 {[%clk 0:00:57]}  Rfb8 {[%clk 0:00:24]} 26. Rfd1 {[%clk 0:00:11]}  Bxc3 {[%clk 0:00:21]} 27. bxc3 {[%clk 0:00:12]}  Rxb1 {[%clk 0:00:20]} 28. Rxb1 {[%clk 0:00:13]}  Rxb1 {[%clk 0:00:20]} 29. Qxb1 {[%clk 0:00:14]}  Qxc3 {[%clk 0:00:20]} 30. Qb8+ {[%clk 0:00:13]}  Kg7 {[%clk 0:00:20]} 31. e5 {[%clk 0:00:13]}  Qd4 {[%clk 0:00:18]} 32. d6 {[%clk 0:00:13]}  exd6 {[%clk 0:00:13]} 33. exd6 {[%clk 0:00:12]}  c3 {[%clk 0:00:13]} 34. Qc7 {[%clk 0:00:12]}  Qe4+ {[%clk 0:00:11]} 35. Kh2 {[%clk 0:00:11]}  c2 {[%clk 0:00:11]} 36. d7 {[%clk 0:00:11]}  Qd4 {[%clk 0:00:06]} 37. d8=Q {[%clk 0:00:05]}  Qxd8 {[%clk 0:00:04]} 38. Qxd8 {[%clk 0:00:06]}  c1=Q {[%clk 0:00:04]} 39. Qd4+ {[%clk 0:00:07]}  Kg8 {[%clk 0:00:04]} 40. Qxa7 {[%clk 0:00:07]}  Qd2 {[%clk 0:00:00]} 41. Qe3 {[%clk 0:00:08]} 1-0


[Site "https://www.chess.com"]

[Event "Titled Tuesday Blitz May 9 Late 2023"]
[White "Olsson, William"]
[Black "HamedWafa4"]
[WhiteFideId "1741721"]
[WhiteElo "2197"]
[BlackElo "2577"]
[Result "0-1"]
[Round "03"]
[TimeControl "180+2"]
[Date "2023.05.09"]
[WhiteClock "0:00:13"]
[BlackClock "0:01:21"]

1. c4 {[%clk 0:03:00]}  e6 {[%clk 0:02:59]} 2. Nf3 {[%clk 0:03:00]}  f5 {[%clk 0:02:58]} 3. g3 {[%clk 0:02:56]}  b6 {[%clk 0:02:58]} 4. Bg2 {[%clk 0:02:56]}  Bb7 {[%clk 0:02:58]} 5. O-O {[%clk 0:02:57]}  Nf6 {[%clk 0:02:58]} 6. Nc3 {[%clk 0:02:57]}  Bb4 {[%clk 0:02:58]} 7. d3 {[%clk 0:02:57]}  Bxc3 {[%clk 0:02:58]} 8. bxc3 {[%clk 0:02:58]}  O-O {[%clk 0:02:58]} 9. Qc2 {[%clk 0:02:57]}  d6 {[%clk 0:02:57]} 10. Rb1 {[%clk 0:02:56]}  Nbd7 {[%clk 0:02:57]} 11. Ba3 {[%clk 0:02:55]}  Qe7 {[%clk 0:02:57]} 12. Rfe1 {[%clk 0:02:52]}  e5 {[%clk 0:02:47]} 13. Qd2 {[%clk 0:02:37]}  Kh8 {[%clk 0:02:45]} 14. Rb5 {[%clk 0:02:36]}  a6 {[%clk 0:02:42]} 15. Rbb1 {[%clk 0:02:31]}  Rae8 {[%clk 0:02:41]} 16. Bb4 {[%clk 0:02:28]}  a5 {[%clk 0:02:40]} 17. Ba3 {[%clk 0:02:24]}  f4 {[%clk 0:02:33]} 18. gxf4 {[%clk 0:01:30]}  Nh5 {[%clk 0:02:29]} 19. fxe5 {[%clk 0:01:29]}  Nxe5 {[%clk 0:02:29]} 20. Nxe5 {[%clk 0:00:58]}  Bxg2 {[%clk 0:02:28]} 21. Ng6+ {[%clk 0:00:51]}  hxg6 {[%clk 0:02:26]} 22. Kxg2 {[%clk 0:00:52]}  Rxf2+ {[%clk 0:01:21]} 23. Kxf2 {[%clk 0:00:39]}  Qh4+ {[%clk 0:01:21]} 24. Kg1 {[%clk 0:00:36]}  Qg4+ {[%clk 0:01:20]} 25. Kh1 {[%clk 0:00:33]}  Ng3+ {[%clk 0:01:20]} 26. hxg3 {[%clk 0:00:28]}  Qh3+ {[%clk 0:01:20]} 27. Kg1 {[%clk 0:00:28]}  Qxg3+ {[%clk 0:01:21]} 28. Kh1 {[%clk 0:00:28]}  Re5 {[%clk 0:01:21]} 29. Rb5 {[%clk 0:00:13]}  c5 {[%clk 0:01:21]} 0-1


[Site "https://www.chess.com"]

[Event "Titled Tuesday Blitz May 9 Late 2023"]
[White "Mortazavi, Ali"]
[Black "Colpe, Malte"]
[WhiteFideId "401323"]
[BlackFideId "24623075"]
[WhiteElo "2339"]
[BlackElo "2289"]
[Result "1-0"]
[Round "03"]
[TimeControl "180+2"]
[Date "2023.05.09"]
[WhiteClock "0:01:26"]
[BlackClock "0:01:41"]

1. Nf3 {[%clk 0:02:37]}  Nf6 {[%clk 0:02:57]} 2. g3 {[%clk 0:02:38]}  b6 {[%clk 0:02:56]} 3. Bg2 {[%clk 0:02:39]}  Bb7 {[%clk 0:02:56]} 4. O-O {[%clk 0:02:39]}  g6 {[%clk 0:02:55]} 5. d3 {[%clk 0:02:40]}  Bg7 {[%clk 0:02:55]} 6. e4 {[%clk 0:02:41]}  O-O {[%clk 0:02:56]} 7. a4 {[%clk 0:02:41]}  a6 {[%clk 0:02:51]} 8. Nc3 {[%clk 0:02:41]}  d5 {[%clk 0:02:49]} 9. e5 {[%clk 0:02:40]}  Nfd7 {[%clk 0:02:49]} 10. e6 {[%clk 0:02:40]}  fxe6 {[%clk 0:02:32]} 11. Re1 {[%clk 0:02:39]}  Nc5 {[%clk 0:02:29]} 12. d4 {[%clk 0:02:03]}  Ne4 {[%clk 0:02:26]} 13. Bf4 {[%clk 0:01:33]}  Nd7 {[%clk 0:02:18]} 14. Nxe4 {[%clk 0:01:32]}  dxe4 {[%clk 0:02:17]} 15. Ng5 {[%clk 0:01:33]}  e5 {[%clk 0:02:11]} 16. Ne6 {[%clk 0:01:27]}  Qc8 {[%clk 0:01:58]} 17. Nxf8 {[%clk 0:01:27]}  exf4 {[%clk 0:01:53]} 18. Nxd7 {[%clk 0:01:27]}  f3 {[%clk 0:01:48]} 19. Bh3 {[%clk 0:01:26]}  Bc6 {[%clk 0:01:46]} 20. Nf6+ {[%clk 0:01:26]}  exf6 {[%clk 0:01:41]} 21. Bxc8 {[%clk 0:01:26]} 1-0


[Site "https://www.chess.com"]

[Event "Titled Tuesday Blitz May 9 Late 2023"]
[White "Janaszak, Dawid"]
[Black "Tworuszka, Michal"]
[WhiteFideId "1119206"]
[BlackFideId "1117858"]
[WhiteElo "2220"]
[BlackElo "2416"]
[Result "0-1"]
[Round "03"]
[TimeControl "180+2"]
[Date "2023.05.09"]
[WhiteClock "0:00:00"]
[BlackClock "0:00:17"]

1. e4 {[%clk 0:03:00]}  e5 {[%clk 0:02:59]} 2. Nf3 {[%clk 0:03:00]}  Nc6 {[%clk 0:02:59]} 3. d4 {[%clk 0:03:01]}  exd4 {[%clk 0:02:59]} 4. Nxd4 {[%clk 0:03:02]}  Bc5 {[%clk 0:02:59]} 5. Nb3 {[%clk 0:03:02]}  Bb6 {[%clk 0:02:57]} 6. Nc3 {[%clk 0:03:02]}  Nf6 {[%clk 0:02:51]} 7. Bg5 {[%clk 0:03:00]}  h6 {[%clk 0:02:50]} 8. Bh4 {[%clk 0:02:57]}  d6 {[%clk 0:02:34]} 9. Qe2 {[%clk 0:02:56]}  g5 {[%clk 0:02:12]} 10. Bg3 {[%clk 0:02:55]}  Qe7 {[%clk 0:02:13]} 11. O-O-O {[%clk 0:02:48]}  Be6 {[%clk 0:02:13]} 12. Nd5 {[%clk 0:02:22]}  Bxd5 {[%clk 0:02:01]} 13. exd5 {[%clk 0:02:23]}  Qxe2 {[%clk 0:02:01]} 14. Bxe2 {[%clk 0:02:24]}  Nb4 {[%clk 0:01:54]} 15. a3 {[%clk 0:02:03]}  Nbxd5 {[%clk 0:01:48]} 16. Bf3 {[%clk 0:02:04]}  Nf4 {[%clk 0:01:38]} 17. Bxb7 {[%clk 0:01:55]}  Rb8 {[%clk 0:01:38]} 18. Bc6+ {[%clk 0:01:50]}  Kf8 {[%clk 0:01:38]} 19. Rhe1 {[%clk 0:01:13]}  Kg7 {[%clk 0:01:38]} 20. f3 {[%clk 0:01:01]}  Nxg2 {[%clk 0:01:35]} 21. Re7 {[%clk 0:00:58]}  Ne3 {[%clk 0:01:27]} 22. Re1 {[%clk 0:00:38]}  Nf5 {[%clk 0:01:28]} 23. R7e2 {[%clk 0:00:38]}  Nxg3 {[%clk 0:01:21]} 24. hxg3 {[%clk 0:00:38]}  Nh5 {[%clk 0:01:22]} 25. g4 {[%clk 0:00:26]}  Nf4 {[%clk 0:01:22]} 26. Re7 {[%clk 0:00:25]}  Ng6 {[%clk 0:01:21]} 27. R7e2 {[%clk 0:00:18]}  Ne5 {[%clk 0:01:21]} 28. Be4 {[%clk 0:00:18]}  h5 {[%clk 0:01:14]} 29. gxh5 {[%clk 0:00:18]}  Rxh5 {[%clk 0:01:14]} 30. Nd2 {[%clk 0:00:19]}  Rbh8 {[%clk 0:01:04]} 31. Rg2 {[%clk 0:00:18]}  Kf6 {[%clk 0:00:57]} 32. Nf1 {[%clk 0:00:17]}  Rh1 {[%clk 0:00:55]} 33. Kd1 {[%clk 0:00:16]}  Nc4 {[%clk 0:00:42]} 34. b3 {[%clk 0:00:12]}  Rxf1 {[%clk 0:00:32]} 35. bxc4 {[%clk 0:00:12]}  Rxe1+ {[%clk 0:00:31]} 36. Kxe1 {[%clk 0:00:13]}  Rh1+ {[%clk 0:00:31]} 37. Ke2 {[%clk 0:00:13]}  Ra1 {[%clk 0:00:31]} 38. Bd3 {[%clk 0:00:08]}  Rxa3 {[%clk 0:00:30]} 39. Rh2 {[%clk 0:00:09]}  a5 {[%clk 0:00:27]} 40. Rh6+ {[%clk 0:00:09]}  Ke7 {[%clk 0:00:25]} 41. Rh5 {[%clk 0:00:08]}  a4 {[%clk 0:00:24]} 42. Rxg5 {[%clk 0:00:08]}  Ra1 {[%clk 0:00:24]} 43. Kd2 {[%clk 0:00:06]}  a3 {[%clk 0:00:19]} 44. Kc3 {[%clk 0:00:06]}  Rb1 {[%clk 0:00:18]} 45. c5 {[%clk 0:00:03]}  a2 {[%clk 0:00:17]} 46. cxd6+ {[%clk 0:00:00]}  cxd6 {[%clk 0:00:17]} 0-1


[Site "https://www.chess.com"]

[Event "Titled Tuesday Blitz May 9 Late 2023"]
[White "Balla, Tamas-Kristof"]
[Black "Adewumi, Tanitoluwa"]
[WhiteFideId "1208497"]
[BlackFideId "30966396"]
[WhiteElo "2334"]
[BlackElo "2570"]
[Result "1-0"]
[Round "03"]
[TimeControl "180+2"]
[Date "2023.05.09"]
[WhiteClock "0:01:18"]
[BlackClock "0:00:00"]

1. f4 {[%clk 0:03:00]}  d5 {[%clk 0:02:56]} 2. b3 {[%clk 0:02:59]}  Nf6 {[%clk 0:02:54]} 3. Bb2 {[%clk 0:02:56]}  g6 {[%clk 0:02:54]} 4. Nf3 {[%clk 0:02:56]}  Bg7 {[%clk 0:02:54]} 5. g3 {[%clk 0:02:56]}  O-O {[%clk 0:02:53]} 6. Bg2 {[%clk 0:02:57]}  c5 {[%clk 0:02:51]} 7. e3 {[%clk 0:02:56]}  Nc6 {[%clk 0:02:26]} 8. O-O {[%clk 0:02:55]}  Re8 {[%clk 0:01:52]} 9. Qe2 {[%clk 0:02:53]}  Bg4 {[%clk 0:01:43]} 10. h3 {[%clk 0:02:45]}  Bxf3 {[%clk 0:01:37]} 11. Qxf3 {[%clk 0:02:38]}  e5 {[%clk 0:01:28]} 12. f5 {[%clk 0:02:38]}  e4 {[%clk 0:01:24]} 13. Qf2 {[%clk 0:02:32]}  Ng4 {[%clk 0:01:11]} 14. hxg4 {[%clk 0:02:31]}  Bxb2 {[%clk 0:01:09]} 15. fxg6 {[%clk 0:02:31]}  fxg6 {[%clk 0:01:01]} 16. Qf7+ {[%clk 0:02:27]}  Kh8 {[%clk 0:01:01]} 17. Nc3 {[%clk 0:02:24]}  Bxa1 {[%clk 0:00:51]} 18. Rxa1 {[%clk 0:02:21]}  Ne5 {[%clk 0:00:38]} 19. Qxb7 {[%clk 0:02:07]}  Rb8 {[%clk 0:00:33]} 20. Qxd5 {[%clk 0:02:07]}  Qxd5 {[%clk 0:00:27]} 21. Nxd5 {[%clk 0:02:03]}  Rbd8 {[%clk 0:00:27]} 22. Bxe4 {[%clk 0:01:54]}  Nxg4 {[%clk 0:00:23]} 23. Bg2 {[%clk 0:01:50]}  Kg7 {[%clk 0:00:20]} 24. c4 {[%clk 0:01:49]}  Ne5 {[%clk 0:00:19]} 25. d4 {[%clk 0:01:33]}  cxd4 {[%clk 0:00:17]} 26. exd4 {[%clk 0:01:34]}  Ng4 {[%clk 0:00:10]} 27. Bf3 {[%clk 0:01:27]}  Ne3 {[%clk 0:00:00]} 28. Kf2 {[%clk 0:01:18]} 1-0


[Site "https://www.chess.com"]

[Event "Titled Tuesday Blitz May 9 Late 2023"]
[White "Hnydiuk, Aleksander"]
[Black "Gasparyan, David"]
[WhiteFideId "1109057"]
[BlackFideId "13311980"]
[WhiteElo "2374"]
[BlackElo "2407"]
[Result "1-0"]
[Round "03"]
[TimeControl "180+2"]
[Date "2023.05.09"]
[WhiteClock "0:00:08"]
[BlackClock "0:00:16"]

1. e4 {[%clk 0:03:00]}  e5 {[%clk 0:02:53]} 2. Nf3 {[%clk 0:03:00]}  Nc6 {[%clk 0:02:53]} 3. d4 {[%clk 0:03:01]}  exd4 {[%clk 0:02:53]} 4. Nxd4 {[%clk 0:03:02]}  Bc5 {[%clk 0:02:49]} 5. Nxc6 {[%clk 0:03:02]}  bxc6 {[%clk 0:02:49]} 6. Bd3 {[%clk 0:03:00]}  d6 {[%clk 0:02:44]} 7. O-O {[%clk 0:02:58]}  Qf6 {[%clk 0:02:40]} 8. Nc3 {[%clk 0:02:53]}  Ne7 {[%clk 0:02:29]} 9. Na4 {[%clk 0:02:52]}  Bb6 {[%clk 0:02:27]} 10. Nxb6 {[%clk 0:02:51]}  axb6 {[%clk 0:02:28]} 11. f4 {[%clk 0:02:22]}  h5 {[%clk 0:02:15]} 12. Qe1 {[%clk 0:02:12]}  Be6 {[%clk 0:01:35]} 13. Bd2 {[%clk 0:02:08]}  Qd4+ {[%clk 0:01:00]} 14. Kh1 {[%clk 0:02:06]}  f6 {[%clk 0:01:01]} 15. Bc3 {[%clk 0:01:46]}  Qa4 {[%clk 0:00:59]} 16. b3 {[%clk 0:01:41]}  Qa7 {[%clk 0:00:55]} 17. Qg3 {[%clk 0:01:33]}  Rg8 {[%clk 0:00:46]} 18. e5 {[%clk 0:01:25]}  O-O-O {[%clk 0:00:46]} 19. exf6 {[%clk 0:01:19]}  gxf6 {[%clk 0:00:47]} 20. Qe3 {[%clk 0:01:12]}  Bd5 {[%clk 0:00:44]} 21. Rf2 {[%clk 0:01:09]}  Rde8 {[%clk 0:00:41]} 22. Bxf6 {[%clk 0:01:04]}  Ng6 {[%clk 0:00:37]} 23. Qh3+ {[%clk 0:01:01]}  Kb7 {[%clk 0:00:36]} 24. c4 {[%clk 0:00:58]}  Nxf4 {[%clk 0:00:33]} 25. Rxf4 {[%clk 0:00:46]}  Bxg2+ {[%clk 0:00:33]} 26. Qxg2 {[%clk 0:00:44]}  Rxg2 {[%clk 0:00:34]} 27. Kxg2 {[%clk 0:00:44]}  Qa5 {[%clk 0:00:35]} 28. Rf2 {[%clk 0:00:29]}  Rg8+ {[%clk 0:00:34]} 29. Kh1 {[%clk 0:00:28]}  h4 {[%clk 0:00:30]} 30. Rg1 {[%clk 0:00:22]}  Rxg1+ {[%clk 0:00:27]} 31. Kxg1 {[%clk 0:00:23]}  Qe1+ {[%clk 0:00:26]} 32. Bf1 {[%clk 0:00:22]}  Qe3 {[%clk 0:00:25]} 33. Bxh4 {[%clk 0:00:20]}  d5 {[%clk 0:00:25]} 34. cxd5 {[%clk 0:00:19]}  cxd5 {[%clk 0:00:26]} 35. Bg3 {[%clk 0:00:18]}  d4 {[%clk 0:00:25]} 36. Kg2 {[%clk 0:00:17]}  Qe4+ {[%clk 0:00:22]} 37. Rf3 {[%clk 0:00:16]}  b5 {[%clk 0:00:21]} 38. Bd3 {[%clk 0:00:12]}  Qd5 {[%clk 0:00:20]} 39. h4 {[%clk 0:00:11]}  c6 {[%clk 0:00:20]} 40. h5 {[%clk 0:00:11]}  Qxh5 {[%clk 0:00:20]} 41. Rf4 {[%clk 0:00:09]}  Qd5+ {[%clk 0:00:19]} 42. Be4 {[%clk 0:00:09]}  Qc5 {[%clk 0:00:19]} 43. Rf6 {[%clk 0:00:05]}  d3 {[%clk 0:00:13]} 44. Rxc6 {[%clk 0:00:05]}  Qe3 {[%clk 0:00:09]} 45. Re6+ {[%clk 0:00:03]}  Kc8 {[%clk 0:00:06]} 46. Re8+ {[%clk 0:00:02]}  Kd7 {[%clk 0:00:06]} 47. Bc6+ {[%clk 0:00:02]}  Kxc6 {[%clk 0:00:05]} 48. Rxe3 {[%clk 0:00:03]}  d2 {[%clk 0:00:05]} 49. Rd3 {[%clk 0:00:03]}  d1=Q {[%clk 0:00:06]} 50. Rxd1 {[%clk 0:00:03]}  Kc5 {[%clk 0:00:07]} 51. Bf2+ {[%clk 0:00:03]}  Kb4 {[%clk 0:00:08]} 52. Rd4+ {[%clk 0:00:03]}  Ka3 {[%clk 0:00:07]} 53. b4 {[%clk 0:00:04]}  Ka4 {[%clk 0:00:08]} 54. Kf3 {[%clk 0:00:04]}  Ka3 {[%clk 0:00:08]} 55. Ke4 {[%clk 0:00:04]}  Ka4 {[%clk 0:00:08]} 56. Kd5 {[%clk 0:00:05]}  Ka3 {[%clk 0:00:09]} 57. Kc5 {[%clk 0:00:05]}  Ka4 {[%clk 0:00:10]} 58. Kc6 {[%clk 0:00:05]}  Ka3 {[%clk 0:00:10]} 59. Kxb5 {[%clk 0:00:06]}  Kb2 {[%clk 0:00:10]} 60. Rc4 {[%clk 0:00:06]}  Ka3 {[%clk 0:00:11]} 61. Kc5 {[%clk 0:00:06]}  Kb2 {[%clk 0:00:12]} 62. b5 {[%clk 0:00:06]}  Ka3 {[%clk 0:00:13]} 63. b6 {[%clk 0:00:06]}  Kb2 {[%clk 0:00:13]} 64. a4 {[%clk 0:00:06]}  Ka3 {[%clk 0:00:12]} 65. a5 {[%clk 0:00:06]}  Kb2 {[%clk 0:00:13]} 66. a6 {[%clk 0:00:07]}  Ka3 {[%clk 0:00:14]} 67. a7 {[%clk 0:00:07]}  Kb2 {[%clk 0:00:14]} 68. b7 {[%clk 0:00:07]}  Ka1 {[%clk 0:00:15]} 69. a8=Q+ {[%clk 0:00:08]}  Kb1 {[%clk 0:00:16]} 70. b8=Q# {[%clk 0:00:08]} 1-0


[Site "https://www.chess.com"]

[Event "Titled Tuesday Blitz May 9 Late 2023"]
[White "Bruedigam, Martin"]
[Black "K2JW"]
[WhiteFideId "24608033"]
[WhiteElo "2331"]
[BlackElo "2404"]
[Result "1-0"]
[Round "03"]
[TimeControl "180+2"]
[Date "2023.05.09"]
[WhiteClock "0:00:17"]
[BlackClock "0:00:02"]

1. d4 {[%clk 0:03:00]}  Nf6 {[%clk 0:02:58]} 2. c4 {[%clk 0:03:01]}  e6 {[%clk 0:02:58]} 3. Nc3 {[%clk 0:03:00]}  d5 {[%clk 0:02:58]} 4. cxd5 {[%clk 0:03:00]}  exd5 {[%clk 0:02:59]} 5. Bg5 {[%clk 0:03:00]}  Be7 {[%clk 0:03:00]} 6. e3 {[%clk 0:03:00]}  c6 {[%clk 0:03:00]} 7. Bd3 {[%clk 0:03:01]}  Nbd7 {[%clk 0:02:59]} 8. Qc2 {[%clk 0:03:00]}  h6 {[%clk 0:02:59]} 9. Bh4 {[%clk 0:02:58]}  Nh5 {[%clk 0:02:59]} 10. Bxe7 {[%clk 0:02:57]}  Qxe7 {[%clk 0:03:00]} 11. Nge2 {[%clk 0:02:54]}  Nb6 {[%clk 0:02:59]} 12. O-O {[%clk 0:02:52]}  O-O {[%clk 0:02:59]} 13. a3 {[%clk 0:02:47]}  a5 {[%clk 0:02:54]} 14. Na4 {[%clk 0:02:44]}  Nxa4 {[%clk 0:02:15]} 15. Qxa4 {[%clk 0:02:45]}  Bd7 {[%clk 0:01:59]} 16. Qc2 {[%clk 0:02:35]}  Nf6 {[%clk 0:01:55]} 17. Rab1 {[%clk 0:02:32]}  Qd6 {[%clk 0:01:40]} 18. h3 {[%clk 0:02:27]}  Rfe8 {[%clk 0:01:31]} 19. Nc3 {[%clk 0:02:27]}  Qe7 {[%clk 0:01:14]} 20. b4 {[%clk 0:02:23]}  axb4 {[%clk 0:01:15]} 21. axb4 {[%clk 0:02:24]}  Ne4 {[%clk 0:01:15]} 22. b5 {[%clk 0:02:18]}  Ra3 {[%clk 0:00:54]} 23. Nxe4 {[%clk 0:02:11]}  dxe4 {[%clk 0:00:54]} 24. Be2 {[%clk 0:02:10]}  Qg5 {[%clk 0:00:48]} 25. Kh1 {[%clk 0:02:03]}  Rea8 {[%clk 0:00:45]} 26. bxc6 {[%clk 0:02:02]}  Bxc6 {[%clk 0:00:46]} 27. Rfc1 {[%clk 0:01:54]}  Ra2 {[%clk 0:00:44]} 28. Rb2 {[%clk 0:01:54]}  R2a3 {[%clk 0:00:29]} 29. Rcb1 {[%clk 0:01:42]}  Qf6 {[%clk 0:00:29]} 30. Kg1 {[%clk 0:01:41]}  R3a5 {[%clk 0:00:27]} 31. Bb5 {[%clk 0:01:33]}  Bd5 {[%clk 0:00:27]} 32. Qc7 {[%clk 0:01:24]}  Ra2 {[%clk 0:00:24]} 33. Rxa2 {[%clk 0:01:22]}  Rxa2 {[%clk 0:00:24]} 34. Rf1 {[%clk 0:01:15]}  Rb2 {[%clk 0:00:24]} 35. Ba4 {[%clk 0:01:06]}  b5 {[%clk 0:00:22]} 36. Qc3 {[%clk 0:01:03]}  Ra2 {[%clk 0:00:10]} 37. Bxb5 {[%clk 0:01:03]}  Kh7 {[%clk 0:00:10]} 38. Qc5 {[%clk 0:00:58]}  Qe6 {[%clk 0:00:10]} 39. Rb1 {[%clk 0:00:49]}  Qf5 {[%clk 0:00:10]} 40. Rf1 {[%clk 0:00:46]}  Qe6 {[%clk 0:00:10]} 41. Qc3 {[%clk 0:00:44]}  Ra8 {[%clk 0:00:10]} 42. Be2 {[%clk 0:00:43]}  Rc8 {[%clk 0:00:10]} 43. Qd2 {[%clk 0:00:43]}  Qc6 {[%clk 0:00:10]} 44. Rb1 {[%clk 0:00:37]}  Qg6 {[%clk 0:00:10]} 45. Bf1 {[%clk 0:00:36]}  Be6 {[%clk 0:00:09]} 46. g3 {[%clk 0:00:35]}  Bd5 {[%clk 0:00:09]} 47. h4 {[%clk 0:00:34]}  Rc6 {[%clk 0:00:09]} 48. Bg2 {[%clk 0:00:34]}  Rf6 {[%clk 0:00:09]} 49. Rb5 {[%clk 0:00:33]}  Qf5 {[%clk 0:00:09]} 50. Qc2 {[%clk 0:00:29]}  Qe6 {[%clk 0:00:07]} 51. Rc5 {[%clk 0:00:28]}  g6 {[%clk 0:00:06]} 52. Rc7 {[%clk 0:00:26]}  Bb3 {[%clk 0:00:05]} 53. Qxe4 {[%clk 0:00:24]}  Qd6 {[%clk 0:00:06]} 54. Qb7 {[%clk 0:00:21]}  Be6 {[%clk 0:00:04]} 55. Rc5 {[%clk 0:00:20]}  Bd7 {[%clk 0:00:01]} 56. Rd5 {[%clk 0:00:19]}  Qa3 {[%clk 0:00:01]} 57. Rxd7 {[%clk 0:00:18]}  Qc1+ {[%clk 0:00:02]} 58. Bf1 {[%clk 0:00:18]}  Qd2 {[%clk 0:00:01]} 59. Rxf7+ {[%clk 0:00:18]}  Rxf7 {[%clk 0:00:01]} 60. Qxf7+ {[%clk 0:00:17]}  Kh8 {[%clk 0:00:02]} 1-0


[Site "https://www.chess.com"]

[Event "Titled Tuesday Blitz May 9 Late 2023"]
[White "Gatterer, Florian"]
[Black "Atanasov, Anthony"]
[WhiteFideId "811688"]
[BlackFideId "2623897"]
[WhiteElo "2221"]
[BlackElo "2326"]
[Result "0-1"]
[Round "03"]
[TimeControl "180+2"]
[Date "2023.05.09"]
[WhiteClock "0:00:00"]
[BlackClock "0:00:08"]

1. d4 {[%clk 0:03:00]}  Nf6 {[%clk 0:02:56]} 2. Nf3 {[%clk 0:03:01]}  d5 {[%clk 0:02:56]} 3. g3 {[%clk 0:03:00]}  Bf5 {[%clk 0:02:56]} 4. c4 {[%clk 0:02:59]}  e6 {[%clk 0:02:57]} 5. Nc3 {[%clk 0:02:56]}  c6 {[%clk 0:02:57]} 6. Qb3 {[%clk 0:02:56]}  Na6 {[%clk 0:02:52]} 7. c5 {[%clk 0:02:50]}  b5 {[%clk 0:02:46]} 8. a4 {[%clk 0:02:42]}  Qa5 {[%clk 0:02:40]} 9. Bg2 {[%clk 0:02:23]}  b4 {[%clk 0:02:12]} 10. Nb1 {[%clk 0:02:11]}  Nd7 {[%clk 0:02:03]} 11. O-O {[%clk 0:02:09]}  e5 {[%clk 0:02:02]} 12. e3 {[%clk 0:01:50]}  Ndxc5 {[%clk 0:01:57]} 13. dxc5 {[%clk 0:01:44]}  Nxc5 {[%clk 0:01:58]} 14. Qd1 {[%clk 0:01:38]}  Bd6 {[%clk 0:01:54]} 15. Nbd2 {[%clk 0:01:35]}  Qa6 {[%clk 0:01:48]} 16. Nh4 {[%clk 0:01:22]}  Be6 {[%clk 0:01:41]} 17. f4 {[%clk 0:01:12]}  f6 {[%clk 0:01:37]} 18. Re1 {[%clk 0:01:04]}  Nd3 {[%clk 0:01:29]} 19. Bf1 {[%clk 0:01:02]}  e4 {[%clk 0:01:17]} 20. Nb3 {[%clk 0:01:01]}  c5 {[%clk 0:01:13]} 21. Bxd3 {[%clk 0:00:52]}  exd3 {[%clk 0:01:10]} 22. e4 {[%clk 0:00:40]}  d4 {[%clk 0:01:00]} 23. e5 {[%clk 0:00:37]}  fxe5 {[%clk 0:00:54]} 24. Rxe5 {[%clk 0:00:28]}  Bxe5 {[%clk 0:00:53]} 25. Qh5+ {[%clk 0:00:28]}  Kf8 {[%clk 0:00:42]} 26. Qxe5 {[%clk 0:00:27]}  Bxb3 {[%clk 0:00:39]} 27. Qxc5+ {[%clk 0:00:26]}  Kg8 {[%clk 0:00:38]} 28. Qxb4 {[%clk 0:00:22]}  Qb6 {[%clk 0:00:28]} 29. Qe7 {[%clk 0:00:14]}  Bf7 {[%clk 0:00:20]} 30. Bd2 {[%clk 0:00:13]}  Qxb2 {[%clk 0:00:17]} 31. Rd1 {[%clk 0:00:04]}  Qc2 {[%clk 0:00:13]} 32. Qe1 {[%clk 0:00:03]}  Re8 {[%clk 0:00:13]} 33. Qf1 {[%clk 0:00:04]}  Bb3 {[%clk 0:00:10]} 34. Re1 {[%clk 0:00:00]}  Kf7 {[%clk 0:00:08]} 0-1


[Site "https://www.chess.com"]

[Event "Titled Tuesday Blitz May 9 Late 2023"]
[White "Ryan, Joseph"]
[Black "Reprintsev, Alexander"]
[WhiteFideId "2500426"]
[BlackFideId "14100541"]
[WhiteElo "2373"]
[BlackElo "2218"]
[Result "1-0"]
[Round "03"]
[TimeControl "180+2"]
[Date "2023.05.09"]
[WhiteClock "0:02:18"]
[BlackClock "0:02:18"]

1. d4 {[%clk 0:03:00]}  d5 {[%clk 0:02:52]} 2. Nf3 {[%clk 0:02:59]}  Nc6 {[%clk 0:02:50]} 3. Bf4 {[%clk 0:02:55]}  Bg4 {[%clk 0:02:46]} 4. e3 {[%clk 0:02:54]}  e6 {[%clk 0:02:44]} 5. Be2 {[%clk 0:02:53]}  Bd6 {[%clk 0:02:41]} 6. Bg3 {[%clk 0:02:53]}  f5 {[%clk 0:02:40]} 7. O-O {[%clk 0:02:50]}  Qf6 {[%clk 0:02:39]} 8. c4 {[%clk 0:02:46]}  Nge7 {[%clk 0:02:37]} 9. Nc3 {[%clk 0:02:36]}  f4 {[%clk 0:02:29]} 10. Bxf4 {[%clk 0:02:35]}  Bxf4 {[%clk 0:02:29]} 11. exf4 {[%clk 0:02:36]}  Qxf4 {[%clk 0:02:29]} 12. cxd5 {[%clk 0:02:30]}  exd5 {[%clk 0:02:28]} 13. Qc1 {[%clk 0:02:24]}  O-O-O {[%clk 0:02:18]} 14. Qxf4 {[%clk 0:02:18]} 1-0


[Site "https://www.chess.com"]